fUST/lending_fUST_20250821
["ID","MTS","AMOUNT","RATE_DAILY","PERIOD"]
[380459428,1755781838642,-558.50459806,0.00019716,2]
[380459430,1755781838651,-399.74435954,0.00019716,2]
[380459432,1755781838661,-500.0,0.00019716,2]
[380459434,1755781838670,-500.0,0.00019716,2]
[380459436,1755781838679,-500.0,0.00019716,2]
[380459438,1755781838689,-500.0,0.00019716,2]
[380459440,1755781838698,-500.0,0.00019716,2]
[380459442,1755781838707,-173568.99181775,0.00019717,2]
[380459444,1755781838716,-500.0,0.00019773,2]
[380459446,1755781838726,-500.0,0.00019773,2]
[380459448,1755781838735,-500.5836322,0.00019773,2]
[380459450,1755781838744,-500.93872245,0.00019773,2]
[380459452,1755781838753,-329.35962668,0.00019773,2]
[380459453,1755781838761,-500.0,0.00019773,2]
[380459455,1755781838771,-501.94213724,0.00019773,2]
[380459457,1755781838780,-500.0,0.00019773,2]
[380459459,1755781838789,-500.0,0.00019773,2]
[380459461,1755781838798,-500.0,0.00019773,2]
[380459463,1755781838808,-606.60513422,0.00019773,2]
[380459465,1755781838817,-273.35986992,0.00019773,2]
[380459467,1755781838826,-158.3293145,0.00019773,2]
[380459469,1755781838835,-500.0,0.00019773,2]
[380459471,1755781838844,-500.0,0.00019773,2]
[380459473,1755781838853,-500.0,0.00019773,2]
[380459475,1755781838862,-500.0,0.00019773,2]
[380459477,1755781838871,-500.0,0.00019773,2]
[380459478,1755781838880,-500.0,0.00019773,2]
[380459480,1755781838890,-500.0,0.00019773,2]
[380459482,1755781838899,-500.0,0.00019773,2]
[380459484,1755781838908,-500.0,0.00019773,2]
[380459486,1755781838920,-500.0,0.00019773,2]
[380459488,1755781838930,-1200.0,0.000198,2]
[380459490,1755781838939,-171.227366,0.00019863,2]
[380459492,1755781838948,-1657.74694378,0.000199,2]
[380459494,1755781838958,-1154.46451203,0.00020078,2]
[380459496,1755781838969,-380.30022,0.00020187,2]
[380459498,1755781838978,-508.0,0.00020243,2]
[380459500,1755781838992,-1731.98260838,0.00020309,2]
[380459502,1755781839001,-1000.0,0.00020321,2]
[380459504,1755781839011,-1000.0,0.00020321,2]
[380459506,1755781839021,-581.86927002,0.00020321,2]
[380459508,1755781839031,-1000.0,0.00020321,2]
[380459510,1755781839040,-1000.0,0.00020321,2]
[380459512,1755781839049,-1000.0,0.00020321,2]
[380459514,1755781839058,-1000.0,0.00020321,2]
[380459515,1755781839067,-1000.0,0.00020321,2]
[380459517,1755781839078,-1000.0,0.00020321,2]
[380459519,1755781839087,-1000.0,0.00020321,2]
[380459521,1755781839097,-1000.0,0.00020321,2]
[380459523,1755781839106,-500.0,0.00020321,2]
[380459525,1755781839116,-1000.0,0.00020321,2]
[380459527,1755781839126,-2414.14569501,0.00020672,2]
[380459529,1755781839135,-1619.39,0.000207,2]
[380459531,1755781839144,-508.0,0.00020791,2]
[380459533,1755781839153,-1300.0,0.000208,3]
[380459535,1755781839162,-1009.2420939,0.00020868,2]
[380459537,1755781839172,-1500.0,0.00020868,2]
[380459539,1755781839181,-1500.0,0.00020868,2]
[380459541,1755781839190,-1500.0,0.00020868,2]
[380459543,1755781839199,-1608.87271415,0.00020868,2]
[380459545,1755781839208,-1500.0,0.00020868,2]
[380459547,1755781839217,-1500.0,0.00020868,2]
[380459549,1755781839226,-1500.0,0.00020868,2]
[380459551,1755781839235,-1500.0,0.00020868,2]
[380459553,1755781839244,-1622.80010316,0.00020868,2]
[380459555,1755781839253,-151.0,0.00020881,2]
[380459557,1755781839263,-19187.29552238,0.00020881,2]
[380459559,1755781839272,-283.06419369,0.00020882,2]
[380459560,1755781839281,-1217.0,0.00020948,2]
[380459562,1755781839290,-1731.98260838,0.00020995,2]
[380459564,1755781839300,-8634.64018721,0.00020995,2]
[380459566,1755781839309,-168.0,0.00021183,2]
[380459568,1755781839318,-160.0,0.00021221,2]
[380459570,1755781839327,-215.86710461,0.00021221,2]
[380459572,1755781839337,-160.0,0.00021221,2]
[380459574,1755781839346,-160.0,0.00021221,2]
[380459576,1755781839356,-232.28399145,0.00021221,2]
[380459578,1755781839366,-216.95272161,0.00021221,2]
[380459580,1755781839375,-160.0,0.00021221,2]
[380459582,1755781839385,-844.19128999,0.00021221,2]
[380459584,1755781839395,-353.0,0.00021303,2]
[380459586,1755781839405,-353.0,0.00021305,2]
[380459588,1755781839414,-508.0,0.00021339,2]
[380459590,1755781839424,-447.51469025,0.00021342,2]
[380459592,1755781839434,-2000.0,0.00021416,2]
[380459594,1755781839443,-2000.0,0.00021416,2]
[380459595,1755781839453,-2000.0,0.00021416,2]
[380459597,1755781839463,-2000.0,0.00021416,2]
[380459599,1755781839472,-2000.0,0.00021416,2]
[380459601,1755781839481,-2000.0,0.00021416,2]
[380459603,1755781839491,-2000.0,0.00021416,2]
[380459605,1755781839500,-447.51469025,0.00021452,2]
[380459607,1755781839509,-1242.0,0.00021472,2]
[380459609,1755781839518,-168.0,0.0002151,2]
[380459611,1755781839529,-821.94438615,0.00021524,2]
[380459613,1755781839538,-447.51469025,0.00021534,2]
[380459615,1755781839547,-2154.0,0.00021535,2]
[380459617,1755781839556,-637.0,0.00021535,2]
[380459619,1755781839565,-787.0,0.00021575,2]
[380459621,1755781839574,-188.17508939,0.00021627,2]
[380459623,1755781839583,-447.51469025,0.00021644,2]
[380459625,1755781839593,-1731.98260838,0.0002168,2]
[380459627,1755781839602,-150.232,0.00021721,2]
[380459629,1755781839611,-2414.14569501,0.00021731,2]
[380459630,1755781839620,-150.0,0.00021743,2]
[380459632,1755781839631,-150.0,0.00021743,2]
[380459634,1755781839641,-150.0,0.00021743,2]
[380459636,1755781839650,-973.0,0.00021743,2]
[380459638,1755781839659,-800.0,0.00021753,2]
[380459640,1755781839668,-447.51469025,0.00021753,2]
[380459642,1755781839678,-168.0,0.00021767,2]
[380459644,1755781839687,-800.0,0.00021774,2]
[380459646,1755781839696,-166.25061732,0.00021792,2]
[380459648,1755781839706,-238.15974747,0.00021797,2]
[380459650,1755781839714,-1370.0,0.000218,4]
[380459652,1755781839724,-1500.0,0.00021844,2]
[380459654,1755781839733,-800.0,0.00021848,2]
[380459656,1755781839743,-447.51469025,0.00021863,2]
[380459658,1755781839752,-884.501,0.0002187,2]
[380459660,1755781839761,-172.43299732,0.0002187,2]
[380459662,1755781839770,-508.0,0.00021887,2]
[380459664,1755781839781,-1000.0,0.0002189,2]
[380459666,1755781839790,-1000.0,0.0002189,2]
[380459667,1755781839800,-1000.0,0.0002189,2]
[380459668,1755781839809,-3000.0,0.000219,2]
[380459669,1755781839817,-250.0,0.000219,10]
[380459670,1755781839826,-3000.0,0.0002191,2]
[380459671,1755781839835,-480.0,0.00021917,3]
[380459672,1755781839843,-480.0,0.00021917,3]
[380459673,1755781839854,-1475.36,0.00021917,3]
[380459674,1755781839863,-480.0,0.00021917,3]
[380459675,1755781839891,-1403.88,0.00021917,3]
[380459676,1755781839900,-480.0,0.00021917,3]
[380459677,1755781839909,-480.0,0.00021917,3]
[380459678,1755781839921,-1261.29,0.00021917,3]
[380459679,1755781839930,-480.0,0.00021917,3]
[380459680,1755781839940,-480.0,0.00021917,3]
[380459681,1755781839949,-480.0,0.00021917,3]
[380459683,1755781839960,-480.0,0.00021917,3]
[380459685,1755781839970,-480.0,0.00021917,3]
[380459687,1755781839979,-462.74680707,0.00021917,3]
[380459689,1755781839988,-480.0,0.00021917,3]
[380459691,1755781840000,-480.0,0.00021917,3]
[380459693,1755781840010,-480.0,0.00021917,3]
[380459695,1755781840019,-480.0,0.00021917,3]
[380459697,1755781840030,-480.0,0.00021917,3]
[380459716,1755781840208,-480.0,0.00021917,3]
[380459718,1755781840218,-480.0,0.00021917,3]
[380459720,1755781840227,-480.0,0.00021917,3]
[380459721,1755781840236,-480.0,0.00021917,3]
[380459723,1755781840245,-480.0,0.00021917,3]
[380459725,1755781840255,-173.7858844,0.00021917,3]
[380459727,1755781840264,-480.0,0.00021917,3]
[380459729,1755781840273,-480.0,0.00021917,3]
[380459731,1755781840284,-480.0,0.00021917,3]
[380459733,1755781840293,-480.0,0.00021917,3]
[380459735,1755781840303,-480.0,0.00021917,3]
[380459737,1755781840313,-480.0,0.00021917,3]
[380459739,1755781840323,-480.48228969,0.00021917,3]
[380459741,1755781840332,-480.0,0.00021917,3]
[380459743,1755781840343,-460.0,0.00021917,3]
[380459745,1755781840352,-480.0,0.00021917,3]
[380459747,1755781840362,-480.0,0.00021917,3]
[380459749,1755781840372,-480.0,0.00021917,3]
[380459751,1755781840381,-480.0,0.00021917,3]
[380459753,1755781840391,-480.0,0.00021917,3]
[380459755,1755781840400,-196.3,0.00021917,2]
[380459757,1755781840409,-241.940684,0.00021917,2]
[380459759,1755781840418,-480.0,0.00021917,3]
[380459761,1755781840427,-480.0,0.00021917,3]
[380459763,1755781840437,-480.0,0.00021917,3]
[380459765,1755781840446,-480.0,0.00021917,3]
[380459767,1755781840455,-480.0,0.00021917,3]
[380459769,1755781840464,-500.0,0.00021917,3]
[380459771,1755781840475,-480.0,0.00021917,3]
[380459773,1755781840484,-480.0,0.00021917,3]
[380459775,1755781840493,-508.50592863,0.00021917,3]
[380459776,1755781840502,-569.11,0.00021917,3]
[380459778,1755781840511,-480.0,0.00021917,3]
[380459780,1755781840521,-164.47254957,0.00021917,3]
[380459782,1755781840530,-480.0,0.00021917,3]
[380459784,1755781840539,-480.0,0.00021917,3]
[380459786,1755781840548,-480.0,0.00021917,3]
[380459788,1755781840557,-480.0,0.00021917,3]
[380459790,1755781840566,-480.0,0.00021917,3]
[380459792,1755781840576,-480.0,0.00021917,3]
[380459794,1755781840585,-480.0,0.00021917,3]
[380459796,1755781840594,-480.0,0.00021917,3]
[380459798,1755781840604,-480.0,0.00021917,3]
[380459799,1755781840613,-480.0,0.00021917,3]
[380459801,1755781840622,-480.0,0.00021917,3]
[380459803,1755781840631,-480.0,0.00021917,3]
[380459805,1755781840640,-480.0,0.00021917,3]
[380459807,1755781840650,-480.0,0.00021917,3]
[380459809,1755781840659,-480.0,0.00021917,3]
[380459811,1755781840668,-480.0,0.00021917,3]
[380459813,1755781840677,-480.0,0.00021917,3]
[380459815,1755781840686,-480.0,0.00021917,3]
[380459817,1755781840696,-480.0,0.00021917,3]
[380459819,1755781840705,-480.0,0.00021917,3]
[380459821,1755781840715,-707.76,0.00021917,3]
[380459823,1755781840724,-480.0,0.00021917,3]
[380459825,1755781840733,-480.0,0.00021917,3]
[380459827,1755781840743,-480.0,0.00021917,3]
[380459829,1755781840753,-480.0,0.00021917,3]
[380459831,1755781840762,-349.94231473,0.00021917,3]
[380459832,1755781840771,-480.0,0.00021917,3]
[380459834,1755781840780,-480.0,0.00021917,3]
[380459836,1755781840790,-480.0,0.00021917,3]
[380459838,1755781840799,-151.429622,0.00021917,2]
[380459840,1755781840808,-480.0,0.00021917,3]
[380459842,1755781840818,-480.0,0.00021917,3]
[380459844,1755781840828,-480.0,0.00021917,3]
[380459846,1755781840837,-1597.29,0.00021917,3]
[380459848,1755781840846,-480.0,0.00021917,3]
[380459850,1755781840856,-480.0,0.00021917,3]
[380459852,1755781840865,-371.09333999,0.00021917,3]
[380459854,1755781840875,-151.0,0.00021917,3]
[380459856,1755781840885,-480.0,0.00021917,3]
[380459858,1755781840895,-762.9,0.00021917,3]
[380459860,1755781840904,-500.0,0.00021917,3]
[380459861,1755781840917,-480.0,0.00021917,3]
[380459863,1755781840938,-480.0,0.00021917,3]
[380459865,1755781840947,-480.0,0.00021917,3]
[380459867,1755781840957,-519.91,0.00021917,3]
[380459869,1755781840966,-480.0,0.00021917,3]
[380459871,1755781840976,-480.0,0.00021917,3]
[380459873,1755781840985,-480.0,0.00021917,3]
[380459875,1755781840994,-480.0,0.00021917,3]
[380459877,1755781841003,-480.0,0.00021917,3]
[380459879,1755781841013,-480.0,0.00021917,3]
[380459881,1755781841023,-480.0,0.00021917,3]
[380459883,1755781841033,-480.0,0.00021917,3]
[380459884,1755781841042,-561.46,0.00021917,3]
[380459886,1755781841052,-480.0,0.00021917,3]
[380459888,1755781841061,-480.0,0.00021917,3]
[380459890,1755781841071,-494.49,0.00021917,3]
[380459892,1755781841081,-2319.36,0.00021917,3]
[380459894,1755781841090,-480.0,0.00021917,3]
[380459896,1755781841099,-969.96,0.00021917,3]
[380459898,1755781841108,-480.0,0.00021917,3]
[380459900,1755781841118,-470.75083041,0.00021917,3]
[380459902,1755781841127,-480.0,0.00021917,3]
[380459904,1755781841137,-480.0,0.00021917,3]
[380459906,1755781841147,-480.0,0.00021917,3]
[380459908,1755781841156,-1006.99,0.00021917,3]
[380459910,1755781841165,-494.93,0.00021917,3]
[380459912,1755781841174,-480.0,0.00021917,3]
[380459914,1755781841184,-980.06,0.00021917,3]
[380459916,1755781841193,-480.0,0.00021917,3]
[380459917,1755781841203,-1160.0,0.00021917,3]
[380459919,1755781841212,-480.0,0.00021917,3]
[380459921,1755781841222,-531.37,0.00021917,3]
[380459923,1755781841231,-1779.01,0.00021917,3]
[380459925,1755781841241,-480.0,0.00021917,3]
[380459927,1755781841251,-480.0,0.00021917,3]
[380459929,1755781841261,-151.0,0.00021917,2]
[380459931,1755781841271,-480.0,0.00021917,3]
[380459933,1755781841280,-151.0,0.00021917,2]
[380459935,1755781841289,-542.29578521,0.00021917,3]
[380459937,1755781841299,-869.93,0.00021917,3]
[380459939,1755781841309,-624.76,0.00021917,3]
[380459941,1755781841318,-1109.9,0.00021917,3]
[380459943,1755781841327,-657.43,0.00021917,3]
[380459945,1755781841336,-480.0,0.00021917,3]
[380459947,1755781841346,-344.31206177,0.00021917,3]
[380459949,1755781841357,-480.0,0.00021917,3]
[380459951,1755781841367,-480.0,0.00021917,3]
[380459953,1755781841376,-877.95,0.00021917,3]
[380459955,1755781841385,-172.609599,0.00021917,2]
[380459957,1755781841395,-480.0,0.00021917,2]
[380459959,1755781841404,-480.0,0.00021917,3]
[380459960,1755781841413,-480.0,0.00021917,3]
[380459962,1755781841422,-494.7,0.00021917,3]
[380459964,1755781841432,-480.0,0.00021917,3]
[380459966,1755781841441,-525.33,0.00021917,3]
[380459968,1755781841450,-498.76,0.00021917,3]
[380459970,1755781841459,-480.0,0.00021917,3]
[380459972,1755781841468,-480.0,0.00021917,3]
[380459974,1755781841477,-1288.41,0.00021917,3]
[380459976,1755781841486,-480.0,0.00021917,3]
[380459978,1755781841496,-702.24,0.00021917,3]
[380459980,1755781841505,-183.8074,0.00021917,2]
[380459982,1755781841515,-898.87,0.00021917,3]
[380459983,1755781841524,-480.0,0.00021917,3]
[380459985,1755781841535,-480.0,0.00021917,3]
[380459987,1755781841544,-480.0,0.00021917,3]
[380459989,1755781841553,-492.04,0.00021917,3]
[380459991,1755781841563,-480.0,0.00021917,3]
[380459993,1755781841571,-1156.55,0.00021917,3]
[380459995,1755781841580,-504.31,0.00021917,3]
[380459997,1755781841589,-540.84,0.00021917,3]
[380459999,1755781841599,-480.0,0.00021917,3]
[380460001,1755781841608,-223.019689,0.00021917,2]
[380460003,1755781841617,-151.0,0.00021917,2]
[380460005,1755781841627,-151.0,0.00021917,2]
[380460007,1755781841636,-151.0,0.00021917,2]
[380460009,1755781841646,-151.0,0.00021917,2]
[380460011,1755781841655,-151.0,0.00021917,2]
[380460013,1755781841666,-227.359048,0.00021917,2]
[380460015,1755781841675,-1093.96,0.00021917,3]
[380460017,1755781841685,-936.19,0.00021917,3]
[380460019,1755781841694,-199.16358068,0.00021917,3]
[380460020,1755781841703,-151.0,0.00021917,3]
[380460022,1755781841713,-500.0,0.00021917,3]
[380460024,1755781841723,-641.9,0.00021917,3]
[380460026,1755781841732,-151.0,0.00021917,3]
[380460028,1755781841741,-722.72,0.00021917,3]
[380460030,1755781841750,-480.0,0.00021917,3]
[380460032,1755781841759,-151.0,0.00021917,3]
[380460034,1755781841768,-480.0,0.00021917,3]
[380460036,1755781841778,-151.0,0.00021917,3]
[380460038,1755781841788,-501.4139511,0.00021917,2]
[380460040,1755781841797,-385.69255039,0.00021917,3]
[380460042,1755781841806,-480.0,0.00021917,3]
[380460044,1755781841815,-480.0,0.00021917,3]
[380460046,1755781841825,-480.0,0.00021917,3]
[380460048,1755781841834,-480.0,0.00021917,3]
[380460049,1755781841843,-480.0,0.00021917,3]
[380460051,1755781841852,-480.0,0.00021917,3]
[380460053,1755781841861,-480.0,0.00021917,3]
[380460055,1755781841870,-480.0,0.00021917,3]
[380460056,1755781841879,-662.69,0.00021917,3]
[380460058,1755781841889,-480.0,0.00021917,3]
[380460060,1755781841898,-480.0,0.00021917,3]
[380460062,1755781841909,-151.0,0.00021917,2]
[380460064,1755781841922,-151.0,0.00021917,2]
[380460066,1755781841932,-831.31,0.00021917,3]
[380460068,1755781841941,-151.0,0.00021917,2]
[380460070,1755781841950,-480.0,0.00021917,3]
[380460072,1755781841960,-480.0,0.00021917,3]
[380460073,1755781841969,-858.06,0.00021917,3]
[380460075,1755781841978,-480.0,0.00021917,3]
[380460077,1755781841988,-666.56,0.00021917,3]
[380460079,1755781841998,-480.0,0.00021917,3]
[380460081,1755781842007,-480.0,0.00021917,3]
[380460083,1755781842017,-677.64,0.00021917,3]
[380460085,1755781842026,-1757.51,0.00021917,3]
[380460087,1755781842038,-480.0,0.00021917,3]
[380460089,1755781842047,-480.0,0.00021917,3]
[380460091,1755781842056,-480.0,0.00021917,3]
[380460093,1755781842066,-480.0,0.00021917,3]
[380460095,1755781842075,-480.0,0.00021917,3]
[380460097,1755781842085,-480.0,0.00021917,3]
[380460099,1755781842094,-2538.58,0.00021917,3]
[380460101,1755781842103,-480.0,0.00021917,3]
[380460102,1755781842113,-480.0,0.00021917,3]
[380460104,1755781842122,-480.0,0.00021917,3]
[380460106,1755781842131,-933.74,0.00021917,3]
[380460108,1755781842140,-200.910113,0.00021917,2]
[380460110,1755781842151,-480.0,0.00021917,3]
[380460112,1755781842160,-480.0,0.00021917,3]
[380460114,1755781842169,-621.53,0.00021917,3]
[380460116,1755781842178,-480.0,0.00021917,3]
[380460118,1755781842187,-480.0,0.00021917,3]
[380460120,1755781842197,-480.0,0.00021917,3]
[380460122,1755781842206,-480.0,0.00021917,3]
[380460124,1755781842215,-641.81,0.00021917,3]
[380460126,1755781842224,-480.0,0.00021917,3]
[380460127,1755781842233,-480.0,0.00021917,3]
[380460129,1755781842242,-715.12,0.00021917,3]
[380460131,1755781842251,-480.0,0.00021917,3]
[380460133,1755781842260,-480.0,0.00021917,3]
[380460135,1755781842270,-500.0,0.00021917,3]
[380460137,1755781842279,-500.0,0.00021917,3]
[380460139,1755781842291,-500.0,0.00021917,3]
[380460140,1755781842300,-480.0,0.00021917,3]
[380460142,1755781842309,-1124.0,0.00021917,3]
[380460144,1755781842319,-1042.88,0.00021917,3]
[380460146,1755781842329,-751.77,0.00021917,3]
[380460148,1755781842338,-480.0,0.00021917,3]
[380460150,1755781842347,-480.0,0.00021917,3]
[380460152,1755781842357,-480.0,0.00021917,3]
[380460154,1755781842366,-905.35,0.00021917,3]
[380460156,1755781842376,-985.51,0.00021917,3]
[380460158,1755781842385,-480.0,0.00021917,3]
[380460160,1755781842395,-480.0,0.00021917,3]
[380460161,1755781842404,-480.0,0.00021917,3]
[380460163,1755781842415,-482.43758831,0.00021917,3]
[380460165,1755781842424,-480.0,0.00021917,3]
[380460167,1755781842434,-480.0,0.00021917,3]
[380460169,1755781842443,-463.40846599,0.00021917,3]
[380460171,1755781842452,-480.0,0.00021917,3]
[380460173,1755781842461,-480.0,0.00021917,3]
[380460175,1755781842471,-480.0,0.00021917,3]
[380460177,1755781842480,-480.0,0.00021917,3]
[380460179,1755781842489,-586.83,0.00021917,3]
[380460181,1755781842498,-480.0,0.00021917,3]
[380460183,1755781842507,-480.0,0.00021917,3]
[380460184,1755781842516,-459.40197119,0.00021917,3]
[380460186,1755781842526,-310.38087552,0.00021917,3]
[380460188,1755781842538,-480.0,0.00021917,3]
[380460190,1755781842547,-480.0,0.00021917,3]
[380460192,1755781842556,-480.0,0.00021917,3]
[380460194,1755781842565,-1638.25,0.00021917,3]
[380460196,1755781842574,-480.0,0.00021917,3]
[380460197,1755781842583,-480.0,0.00021917,3]
[380460198,1755781842591,-480.860249,0.00021917,3]
[380460199,1755781842600,-480.0,0.00021917,3]
[380460200,1755781842609,-480.0,0.00021917,3]
[380460201,1755781842618,-152.753718,0.00021917,2]
[380460202,1755781842627,-480.0,0.00021917,3]
[380460203,1755781842636,-1750.01,0.00021917,3]
[380460204,1755781842645,-480.0,0.00021917,3]
[380460205,1755781842654,-480.0,0.00021917,3]
[380460206,1755781842663,-480.0,0.00021917,3]
[380460207,1755781842672,-480.0,0.00021917,3]
[380460208,1755781842681,-2372.2,0.00021917,3]
[380460209,1755781842690,-480.0,0.00021917,3]
[380460210,1755781842699,-1184.27,0.00021917,3]
[380460211,1755781842708,-629.58,0.00021917,3]
[380460212,1755781842718,-1272.49,0.00021917,3]
[380460213,1755781842727,-480.0,0.00021917,3]
[380460214,1755781842736,-480.0,0.00021917,3]
[380460215,1755781842745,-480.0,0.00021917,3]
[380460216,1755781842755,-1449.21,0.00021917,3]
[380460217,1755781842763,-480.0,0.00021917,3]
[380460218,1755781842773,-480.0,0.00021917,3]
[380460219,1755781842783,-480.0,0.00021917,3]
[380460220,1755781842792,-480.0,0.00021917,3]
[380460221,1755781842801,-480.0,0.00021917,3]
[380460222,1755781842810,-507.85,0.00021917,3]
[380460223,1755781842819,-151.0,0.00021917,2]
[380460224,1755781842828,-151.0,0.00021917,2]
[380460225,1755781842837,-151.0,0.00021917,2]
[380460226,1755781842847,-480.0,0.00021917,3]
[380460227,1755781842856,-480.0,0.00021917,3]
[380460228,1755781842866,-151.0,0.00021917,2]
[380460229,1755781842875,-207.69604344,0.00021917,3]
[380460230,1755781842884,-2543.18,0.00021917,3]
[380460231,1755781842893,-673.27,0.00021917,3]
[380460232,1755781842902,-480.0,0.00021917,3]
[380460233,1755781842912,-462.29783129,0.00021917,3]
[380460234,1755781842925,-151.0,0.00021917,2]
[380460235,1755781842935,-151.0,0.00021917,2]
[380460236,1755781842944,-151.0,0.00021917,2]
[380460237,1755781842953,-151.0,0.00021917,2]
[380460238,1755781842962,-151.0,0.00021917,2]
[380460239,1755781842971,-151.0,0.00021917,2]
[380460241,1755781842981,-151.0,0.00021917,2]
[380460242,1755781842990,-151.0,0.00021917,2]
[380460243,1755781842999,-450.41920347,0.00021917,3]
[380460244,1755781843009,-151.0,0.00021917,2]
[380460245,1755781843018,-151.0,0.00021917,2]
[380460246,1755781843027,-151.0,0.00021917,2]
[380460247,1755781843039,-151.0,0.00021917,2]
[380460248,1755781843052,-480.0,0.00021917,3]
[380460249,1755781843061,-277.4211364,0.00021917,3]
[380460250,1755781843070,-480.0,0.00021917,3]
[380460252,1755781843080,-273.14724219,0.00021917,3]
[380460253,1755781843089,-480.0,0.00021917,3]
[380460254,1755781843099,-480.0,0.00021917,3]
[380460255,1755781843108,-1294.1,0.00021917,3]
[380460256,1755781843117,-151.0,0.00021917,2]
[380460257,1755781843126,-151.0,0.00021917,2]
[380460258,1755781843136,-151.0,0.00021917,2]
[380460259,1755781843145,-480.0,0.00021917,3]
[380460260,1755781843155,-538.42,0.00021917,3]
[380460261,1755781843164,-151.0,0.00021917,2]
[380460262,1755781843173,-151.0,0.00021917,2]
[380460263,1755781843183,-151.0,0.00021917,2]
[380460264,1755781843191,-545.14,0.00021917,3]
[380460265,1755781843201,-480.0,0.00021917,3]
[380460266,1755781843210,-487.02,0.00021917,3]
[380460267,1755781843219,-480.0,0.00021917,3]
[380460268,1755781843228,-710.97,0.00021917,3]
[380460269,1755781843237,-568.78,0.00021917,3]
[380460270,1755781843246,-612.42,0.00021917,3]
[380460271,1755781843401,-480.0,0.00021917,3]
[380460272,1755781843411,-480.0,0.00021917,3]
[380460273,1755781843420,-480.0,0.00021917,3]
[380460274,1755781843430,-480.0,0.00021917,3]
[380460275,1755781843439,-480.0,0.00021917,3]
[380460276,1755781843448,-481.31096931,0.00021917,3]
[380460277,1755781843457,-481.89244393,0.00021917,3]
[380460278,1755781843467,-480.0,0.00021917,3]
[380460279,1755781843476,-480.0,0.00021917,3]
[380460280,1755781843486,-151.755237,0.00021917,2]
[380460281,1755781843495,-1061.36,0.00021917,3]
[380460282,1755781843504,-292.12833219,0.00021917,3]
[380460283,1755781843513,-634.69,0.00021917,3]
[380460285,1755781843523,-480.0,0.00021917,3]
[380460287,1755781843532,-480.0,0.00021917,3]
[380460290,1755781843541,-480.0,0.00021917,3]
[380460292,1755781843550,-480.0,0.00021917,3]
[380460295,1755781843560,-480.0,0.00021917,3]
[380460297,1755781843569,-480.0,0.00021917,3]
[380460299,1755781843577,-480.0,0.00021917,3]
[380460300,1755781843587,-257.14184334,0.00021917,3]
[380460302,1755781843596,-480.0,0.00021917,3]
[380460303,1755781843606,-480.0,0.00021917,3]
[380460304,1755781843615,-1407.24,0.00021917,3]
[380460305,1755781843625,-480.0,0.00021917,3]
[380460306,1755781843634,-480.0,0.00021917,3]
[380460307,1755781843643,-480.0,0.00021917,3]
[380460308,1755781843652,-551.28,0.00021917,3]
[380460309,1755781843662,-480.0,0.00021917,3]
[380460310,1755781843671,-151.0,0.00021917,2]
[380460311,1755781843681,-151.0,0.00021917,2]
[380460312,1755781843690,-151.0,0.00021917,2]